fUSD/lending_fUSD_20260607
["ID","MTS","AMOUNT","RATE_DAILY","PERIOD"]
[424357027,1780782680000,-1507.97895639,0.00035068,2]
[424357028,1780782680000,-2643.59562819,0.00035068,2]
[424357029,1780782680000,-2073.45911095,0.00035068,2]
[424357030,1780782680000,-2839.94535865,0.00035068,2]
[424357031,1780782680000,-2806.61649148,0.00035068,2]
[424357035,1780782680000,-1346.10419953,0.00035068,2]
[424357041,1780782680000,-1737.88220088,0.00035068,2]
[424357034,1780782680000,-1242.71319791,0.00035068,2]
[424357042,1780782680000,-2037.86239526,0.00035073,2]
[424357038,1780782680000,-1308.95206358,0.00035068,2]
[424357039,1780782680000,-1229.09494224,0.00035068,2]
[424357044,1780782680000,-1223.87838319,0.00035073,2]
[424357043,1780782680000,-1305.67135384,0.00035073,2]
[424357040,1780782680000,-2391.31987741,0.00035068,2]
[424357037,1780782680000,-2485.50119236,0.00035068,2]
[424357045,1780782680000,-1314.09481489,0.00035073,2]
[424357057,1780782680000,-933.0,0.00035147,2]
[424357046,1780782680000,-1404.10687203,0.00035073,2]
[424357055,1780782680000,-1274.0,0.00035147,2]
[424357047,1780782680000,-1333.33333333,0.00035073,2]
[424357056,1780782680000,-1227.0,0.00035147,2]
[424357049,1780782680000,-164.43,0.000351,30]
[424357082,1780782680000,-671.0,0.00035347,30]
[424357070,1780782680000,-164.0,0.00035242,11]
[424357089,1780782680000,-800.0,0.00035354,13]
[424357114,1780782680000,-169.0,0.00035412,2]
[424357112,1780782680000,-200.0,0.00035412,2]
[424357111,1780782680000,-200.0,0.00035412,2]
[424357116,1780782680000,-200.0,0.00035412,2]
[424357120,1780782680000,-200.0,0.00035412,2]
[424357129,1780782680000,-200.0,0.00035412,2]
[424357123,1780782680000,-200.0,0.00035412,2]
[424357125,1780782680000,-200.0,0.00035412,2]
[424357128,1780782680000,-200.0,0.00035412,2]
[424357121,1780782680000,-200.0,0.00035412,2]
[424357131,1780782680000,-200.0,0.00035412,2]
[424357130,1780782680000,-200.0,0.00035412,2]
[424357122,1780782680000,-200.0,0.00035412,2]
[424357126,1780782680000,-200.0,0.00035412,2]
[424357127,1780782680000,-200.0,0.00035412,2]
[424357137,1780782680000,-500.0,0.00035412,2]
[424357142,1780782680000,-200.0,0.00035412,2]
[424357136,1780782680000,-500.0,0.00035412,2]
[424357139,1780782680000,-500.0,0.00035412,2]
[424357141,1780782680000,-200.0,0.00035412,2]
[424357140,1780782680000,-200.0,0.00035412,2]
[424357132,1780782680000,-200.0,0.00035412,2]
[424357134,1780782680000,-200.0,0.00035412,2]
[424357138,1780782680000,-500.0,0.00035412,2]
[424357133,1780782680000,-200.0,0.00035412,2]
[424357143,1780782680000,-200.0,0.00035412,2]
[424357091,1780782680000,-800.0,0.00035354,13]
[424357113,1780782680000,-200.0,0.00035412,2]
[424357115,1780782680000,-200.0,0.00035412,2]
[424357124,1780782680000,-200.0,0.00035412,2]
[424357110,1780782680000,-200.0,0.00035412,2]
[424357117,1780782680000,-200.0,0.00035412,2]
[424357093,1780782680000,-800.0,0.00035354,13]
[424357090,1780782680000,-800.0,0.00035354,13]
[424357092,1780782680000,-800.0,0.00035354,13]
[424357094,1780782680000,-800.0,0.00035354,13]
[424357084,1780782680000,-1920.0,0.00035347,30]
[424357087,1780782680000,-391.0,0.00035347,30]
[424357088,1780782680000,-800.0,0.00035354,13]
[424357086,1780782680000,-623.0,0.00035347,30]
[424357135,1780782680000,-200.0,0.00035412,2]
[424357104,1780782680000,-200.0,0.00035412,2]
[424357106,1780782680000,-200.0,0.00035412,2]
[424357105,1780782680000,-200.0,0.00035412,2]
[424357097,1780782680000,-200.0,0.00035412,2]
[424357085,1780782680000,-1467.0,0.00035347,30]
[424357096,1780782680000,-150.0,0.00035372,30]
[424357118,1780782680000,-200.0,0.00035412,2]
[424357119,1780782680000,-200.0,0.00035412,2]
[424357108,1780782680000,-200.0,0.00035412,2]
[424357107,1780782680000,-200.0,0.00035412,2]
[424357103,1780782680000,-200.0,0.00035412,2]
[424357098,1780782680000,-200.0,0.00035412,2]
[424357109,1780782680000,-200.0,0.00035412,2]
[424357099,1780782680000,-200.0,0.00035412,2]
[424357100,1780782680000,-200.0,0.00035412,2]
[424357101,1780782680000,-200.0,0.00035412,2]
[424357095,1780782680000,-800.0,0.00035354,13]
[424357102,1780782680000,-200.0,0.00035412,2]
[424357193,1780782681000,-160.520554,0.000357,15]
[424357189,1780782681000,-1252.01,0.00035616,2]
[424357194,1780782681000,-161.112987,0.000357,15]
[424357195,1780782681000,-160.124101,0.000357,15]
[424357184,1780782681000,-269.157051,0.00035616,2]
[424357191,1780782681000,-150.0,0.00035639,30]
[424357185,1780782681000,-269.157051,0.00035616,2]
[424357186,1780782681000,-269.157051,0.00035616,2]
[424357182,1780782681000,-269.157051,0.00035616,2]
[424357181,1780782681000,-269.157051,0.00035616,2]
[424357180,1780782681000,-8739.9425577,0.00035616,120]
[424357170,1780782681000,-500.0,0.00035616,7]
[424357183,1780782681000,-269.157051,0.00035616,2]
[424357188,1780782681000,-269.157051,0.00035616,2]
[424357198,1780782681000,-376.70132,0.000358,15]
[424357187,1780782681000,-269.157051,0.00035616,2]
[424357190,1780782681000,-300.0,0.00035617,2]
[424357197,1780782681000,-1529.4075,0.00035781,2]
[424357209,1780782681000,-767.0,0.00035845,30]
[424357207,1780782681000,-767.0,0.00035845,30]
[424357208,1780782681000,-767.0,0.00035845,30]
[424357196,1780782681000,-150.0,0.00035772,30]
[424357200,1780782681000,-250.0,0.00035837,2]
[424357199,1780782681000,-250.0,0.00035837,2]
[424357206,1780782681000,-767.0,0.00035845,30]
[424357205,1780782681000,-767.0,0.00035845,30]
[424357202,1780782681000,-275.57218587,0.00035837,2]
[424357203,1780782681000,-486.41,0.00035845,5]
[424357178,1780782681000,-500.0,0.00035616,7]
[424357192,1780782681000,-656.0,0.00035681,11]
[424357176,1780782681000,-500.0,0.00035616,7]
[424357148,1780782681000,-200.0,0.00035412,2]
[424357179,1780782681000,-5019.89363055,0.00035616,120]
[424357145,1780782681000,-200.0,0.00035412,2]
[424357155,1780782681000,-200.0,0.00035412,2]
[424357204,1780782681000,-767.0,0.00035845,30]
[424357147,1780782681000,-200.0,0.00035412,2]
[424357156,1780782681000,-161.0,0.00035412,2]
[424357144,1780782681000,-200.0,0.00035412,2]
[424357146,1780782681000,-200.0,0.00035412,2]
[424357154,1780782681000,-200.0,0.00035412,2]
[424357151,1780782681000,-200.0,0.00035412,2]
[424357150,1780782681000,-200.0,0.00035412,2]
[424357152,1780782681000,-200.0,0.00035412,2]
[424357153,1780782681000,-200.0,0.00035412,2]
[424357149,1780782681000,-200.0,0.00035412,2]
[424357159,1780782681000,-543.0,0.00035412,2]
[424357175,1780782681000,-571.69573259,0.00035616,7]
[424357161,1780782681000,-773.0,0.00035521,3]
[424357162,1780782681000,-218.44,0.00035522,2]
[424357158,1780782681000,-500.0,0.00035412,2]
[424357160,1780782681000,-150.0,0.00035505,30]
[424357168,1780782681000,-500.0,0.00035616,7]
[424357163,1780782681000,-2322.0,0.00035564,11]
[424357166,1780782681000,-337.27326315,0.00035616,30]
[424357167,1780782681000,-1562.0,0.00035616,30]
[424357165,1780782681000,-2000.0,0.00035616,30]
[424357172,1780782681000,-500.0,0.00035616,7]
[424357169,1780782681000,-500.0,0.00035616,7]
[424357171,1780782681000,-500.0,0.00035616,7]
[424357177,1780782681000,-500.0,0.00035616,7]
[424357173,1780782681000,-500.0,0.00035616,7]
[424357174,1780782681000,-645.26159327,0.00035616,7]
[424357157,1780782681000,-500.0,0.00035412,2]
[424357201,1780782681000,-250.0,0.00035837,2]
[424357164,1780782681000,-2322.0,0.00035564,11]
[424357213,1780782681000,-767.0,0.00035845,30]
[424357242,1780782681000,-752.0,0.00035845,30]
[424357243,1780782681000,-753.0,0.00035845,30]
[424357245,1780782681000,-753.0,0.00035845,30]
[424357246,1780782681000,-753.0,0.00035845,30]
[424357247,1780782681000,-225.0,0.00035863,30]
[424357252,1780782681000,-150.0,0.00035899,2]
[424357251,1780782681000,-1820.05,0.00035887,30]
[424357262,1780782681000,-500.0,0.00035951,2]
[424357275,1780782681000,-361.2537955,0.00036,120]
[424357263,1780782681000,-500.0,0.00035951,2]
[424357253,1780782681000,-164.43,0.000359,30]
[424357254,1780782681000,-150.0,0.00035906,30]
[424357255,1780782681000,-150.0,0.00035951,2]
[424357259,1780782681000,-1986.52541432,0.00035951,2]
[424357250,1780782681000,-500.0,0.0003587,2]
[424357256,1780782681000,-1000.0,0.00035951,2]
[424357258,1780782681000,-150.0,0.00035951,2]
[424357261,1780782681000,-407.0,0.00035951,2]
[424357210,1780782681000,-767.0,0.00035845,30]
[424357264,1780782681000,-150.0,0.00035951,2]
[424357271,1780782681000,-1173.18501591,0.00036,120]
[424357269,1780782681000,-867.65345424,0.00036,120]
[424357267,1780782681000,-400.0,0.00035951,2]
[424357268,1780782681000,-158.13681208,0.00035955,2]
[424357266,1780782681000,-400.0,0.00035951,2]
[424357272,1780782681000,-382.09704819,0.00036,120]
[424357270,1780782681000,-247.07951334,0.00036,120]
[424357273,1780782681000,-234.30473028,0.00036,120]
[424357274,1780782681000,-203.01038069,0.00036,120]
[424357265,1780782681000,-150.0,0.00035951,2]
[424357257,1780782681000,-1000.0,0.00035951,2]
[424357244,1780782681000,-753.0,0.00035845,30]
[424357260,1780782681000,-407.0,0.00035951,2]
[424357249,1780782681000,-1000.0,0.0003587,2]
[424357241,1780782681000,-752.0,0.00035845,30]
[424357214,1780782681000,-767.0,0.00035845,30]
[424357212,1780782681000,-767.0,0.00035845,30]
[424357215,1780782681000,-767.0,0.00035845,30]
[424357217,1780782681000,-767.0,0.00035845,30]
[424357211,1780782681000,-767.0,0.00035845,30]
[424357218,1780782681000,-767.0,0.00035845,30]
[424357221,1780782681000,-767.0,0.00035845,30]
[424357219,1780782681000,-767.0,0.00035845,30]
[424357222,1780782681000,-767.0,0.00035845,30]
[424357220,1780782681000,-767.0,0.00035845,30]
[424357224,1780782681000,-767.0,0.00035845,30]
[424357236,1780782681000,-752.0,0.00035845,30]
[424357234,1780782681000,-807.0,0.00035845,30]
[424357235,1780782681000,-378.0,0.00035845,30]
[424357216,1780782681000,-767.0,0.00035845,30]
[424357229,1780782681000,-358.0,0.00035845,30]
[424357248,1780782681000,-172.15,0.0003587,98]
[424357225,1780782681000,-767.0,0.00035845,30]
[424357238,1780782681000,-752.0,0.00035845,30]
[424357240,1780782681000,-752.0,0.00035845,30]
[424357237,1780782681000,-752.0,0.00035845,30]
[424357232,1780782681000,-755.0,0.00035845,30]
[424357239,1780782681000,-752.0,0.00035845,30]
[424357230,1780782681000,-767.0,0.00035845,30]
[424357233,1780782681000,-755.0,0.00035845,30]
[424357226,1780782681000,-767.0,0.00035845,30]
[424357227,1780782681000,-767.0,0.00035845,30]
[424357228,1780782681000,-767.0,0.00035845,30]
[424357223,1780782681000,-767.0,0.00035845,30]
[424357231,1780782681000,-755.0,0.00035845,30]
[424357296,1780782682000,-150.0,0.00036039,30]
[424357307,1780782682000,-656.0,0.00036214,11]
[424357298,1780782682000,-187.4,0.00036115,30]
[424357300,1780782682000,-279.7,0.00036153,30]
[424357299,1780782682000,-5000.0,0.00036142,10]
[424357302,1780782682000,-150.0,0.00036173,30]
[424357297,1780782682000,-527.55067212,0.00036091,120]
[424357301,1780782682000,-1562.0,0.00036164,30]
[424357318,1780782682000,-253.41832702,0.00036244,2]
[424357315,1780782682000,-250.0,0.00036226,2]
[424357306,1780782682000,-500.0,0.00036208,120]
[424357317,1780782682000,-719.04747942,0.00036234,2]
[424357312,1780782682000,-250.0,0.00036226,2]
[424357311,1780782682000,-250.0,0.00036226,2]
[424357314,1780782682000,-250.0,0.00036226,2]
[424357310,1780782682000,-250.0,0.00036226,2]
[424357309,1780782682000,-250.0,0.00036226,2]
[424357295,1780782682000,-959.75,0.00036031,30]
[424357308,1780782682000,-250.0,0.00036226,2]
[424357305,1780782682000,-196.014586,0.000362,16]
[424357288,1780782682000,-159.48709049,0.00036,2]
[424357303,1780782682000,-160.798794,0.000362,16]
[424357277,1780782682000,-480.50509247,0.00036,120]
[424357276,1780782682000,-894.1558848,0.00036,120]
[424357279,1780782682000,-606.04571185,0.00036,120]
[424357291,1780782682000,-319.1,0.00036,2]
[424357290,1780782682000,-800.0,0.00036,2]
[424357278,1780782682000,-547.88475529,0.00036,120]
[424357286,1780782682000,-705.07286941,0.00036,120]
[424357289,1780782682000,-570.589293,0.00036,15]
[424357294,1780782682000,-150.0,0.0003602,2]
[424357282,1780782682000,-554.51108936,0.00036,120]
[424357284,1780782682000,-979.57132833,0.00036,120]
[424357281,1780782682000,-397.53280426,0.00036,120]
[424357280,1780782682000,-372.39131337,0.00036,120]
[424357285,1780782682000,-661.50976053,0.00036,120]
[424357287,1780782682000,-1450.06087723,0.00036,120]
[424357293,1780782682000,-150.0,0.0003602,2]
[424357292,1780782682000,-2000.0,0.00036,7]
[424357304,1780782682000,-186.505033,0.000362,16]
[424357283,1780782682000,-227.3557133,0.00036,120]
[424357316,1780782682000,-158.13681208,0.00036228,2]
[424357320,1780782682000,-25000.0,0.00036395,10]
[424357319,1780782682000,-150.0,0.00036306,30]
[424357338,1780782682000,-5338.0,0.00036562,7]
[424357340,1780782682000,-3983.0,0.00036566,7]
[424357342,1780782682000,-996.0,0.00036566,7]
[424357347,1780782682000,-169.162893,0.000366,17]
[424357350,1780782682000,-250.0,0.00036616,2]
[424357348,1780782682000,-250.0,0.00036616,2]
[424357349,1780782682000,-250.0,0.00036616,2]
[424357351,1780782682000,-250.0,0.00036616,2]
[424357341,1780782682000,-1991.0,0.00036566,7]
[424357353,1780782682000,-250.0,0.00036616,2]
[424357354,1780782682000,-250.0,0.00036616,2]
[424357356,1780782682000,-300.0,0.00036655,2]
[424357358,1780782682000,-300.0,0.00036655,2]
[424357359,1780782682000,-300.0,0.00036655,2]
[424357357,1780782682000,-300.0,0.00036655,2]
[424357360,1780782682000,-300.0,0.00036655,2]
[424357361,1780782682000,-300.0,0.00036655,2]
[424357313,1780782682000,-250.0,0.00036226,2]
[424357352,1780782682000,-250.0,0.00036616,2]
[424357346,1780782682000,-2500.0,0.00036592,10]
[424357355,1780782682000,-1529.4075,0.00036654,2]
[424357339,1780782682000,-2669.0,0.00036562,7]
[424357323,1780782682000,-44794.0,0.000364,30]
[424357337,1780782682000,-10675.0,0.00036562,7]
[424357322,1780782682000,-164.64,0.000364,30]
[424357324,1780782682000,-2500.0,0.00036414,10]
[424357325,1780782682000,-150.0,0.0003644,30]
[424357326,1780782682000,-1334.0,0.00036447,7]
[424357331,1780782682000,-2692.67551003,0.000365,30]
[424357330,1780782682000,-4248.42859273,0.00036488,120]
[424357327,1780782682000,-667.0,0.00036447,7]
[424357321,1780782682000,-500.0,0.00036398,5]
[424357329,1780782682000,-338.0,0.00036447,7]
[424357332,1780782682000,-2692.67551002,0.000365,30]
[424357334,1780782682000,-158.13681208,0.00036502,2]
[424357333,1780782682000,-2692.67551002,0.000365,30]
[424357343,1780782682000,-618.0,0.00036566,3]
[424357344,1780782682000,-37849.7033666,0.00036567,120]
[424357335,1780782682000,-172.15,0.0003651,120]
[424357336,1780782682000,-25000.0,0.0003655,10]
[424357328,1780782682000,-334.0,0.00036447,7]
[424357345,1780782682000,-150.0,0.00036573,30]
[424357406,1780782683000,-151.0,0.00036988,30]
[424357402,1780782683000,-191522.99168392,0.00036988,120]
[424357405,1780782683000,-151.0,0.00036988,30]
[424357404,1780782683000,-151.0,0.00036988,30]
[424357403,1780782683000,-154.061512,0.00036988,30]
[424357397,1780782683000,-150.0,0.00036974,30]
[424357396,1780782683000,-5000.0,0.00036954,10]
[424357393,1780782683000,-52500.0,0.000369,120]
[424357398,1780782683000,-52500.0,0.0003698,120]
[424357395,1780782683000,-3703.48,0.00036909,10]
[424357401,1780782683000,-52500.0,0.00036987,120]
[424357394,1780782683000,-216.51722523,0.000369,60]
[424357400,1780782683000,-300.0,0.00036987,2]
[424357411,1780782683000,-173.243901,0.00036988,30]
[424357415,1780782683000,-851.821804,0.00036988,30]
[424357409,1780782683000,-173.243901,0.00036988,30]
[424357410,1780782683000,-173.243901,0.00036988,30]
[424357408,1780782683000,-151.0,0.00036988,30]
[424357413,1780782683000,-851.821804,0.00036988,30]
[424357423,1780782683000,-529.32302,0.00036988,30]
[424357424,1780782683000,-151.0,0.00036988,30]
[424357417,1780782683000,-151.0,0.00036988,7]
[424357418,1780782683000,-151.0,0.00036988,7]
[424357414,1780782683000,-851.821804,0.00036988,30]
[424357416,1780782683000,-851.821804,0.00036988,30]
[424357420,1780782683000,-151.0,0.00036988,7]
[424357421,1780782683000,-529.32302,0.00036988,30]
[424357391,1780782683000,-177.180889,0.00036825,22]
[424357407,1780782683000,-151.0,0.00036988,30]
[424357392,1780782683000,-150.0,0.0003684,30]
[424357369,1780782683000,-3711.87751084,0.000367,30]
[424357399,1780782683000,-725.94,0.00036986,5]
[424357364,1780782683000,-1586.9687659,0.00036655,2]
[424357363,1780782683000,-1732.82,0.00036655,2]
[424357362,1780782683000,-311.6,0.00036655,2]
[424357366,1780782683000,-151.0,0.00036697,14]
[424357365,1780782683000,-3169.56,0.0003666,2]
[424357372,1780782683000,-1000.0,0.000367,2]
[424357367,1780782683000,-345.388156,0.000367,17]
[424357370,1780782683000,-3711.87751083,0.000367,30]
[424357373,1780782683000,-1000.0,0.000367,2]
[424357375,1780782683000,-4616.79522179,0.00036703,2]
[424357374,1780782683000,-3678.23,0.00036702,10]
[424357371,1780782683000,-3711.87751083,0.000367,30]
[424357368,1780782683000,-187.795301,0.000367,17]
[424357390,1780782683000,-177.18089,0.000368,17]
[424357376,1780782683000,-1410.995771,0.00036703,2]
[424357382,1780782683000,-150.0,0.00036707,30]
[424357386,1780782683000,-158.13681208,0.00036776,2]
[424357387,1780782683000,-150.0,0.000368,2]
[424357379,1780782683000,-1232.2232,0.00036703,2]
[424357412,1780782683000,-173.243901,0.00036988,30]
[424357377,1780782683000,-178.008457,0.00036703,2]
[424357380,1780782683000,-2000.0,0.00036703,2]
[424357381,1780782683000,-2000.0,0.00036703,2]
[424357384,1780782683000,-656.0,0.00036748,12]
[424357385,1780782683000,-150.0,0.00036756,2]
[424357383,1780782683000,-1562.0,0.00036712,30]
[424357389,1780782683000,-1643.18441958,0.000368,2]
[424357388,1780782683000,-182.139,0.000368,2]
[424357378,1780782683000,-1279.3647,0.00036703,2]
[424357419,1780782683000,-151.0,0.00036988,7]
[424357465,1780782683000,-427.94472488,0.000371,2]
[424357425,1780782683000,-529.32302,0.00036988,30]
[424357453,1780782683000,-365.0,0.00037,2]
[424357459,1780782683000,-250.0,0.00037005,2]
[424357464,1780782683000,-158.13681208,0.0003705,2]
[424357462,1780782683000,-250.0,0.00037005,2]
[424357463,1780782683000,-250.0,0.00037005,2]
[424357461,1780782683000,-250.0,0.00037005,2]
[424357460,1780782683000,-250.0,0.00037005,2]
[424357466,1780782683000,-150.0,0.00037107,30]
[424357476,1780782683000,-276.0,0.00037307,120]
[424357477,1780782683000,-158.13681208,0.00037324,2]
[424357475,1780782683000,-2298.0,0.00037301,11]
[424357470,1780782683000,-1815.18554687,0.00037164,2]
[424357478,1780782683000,-3169.56,0.00037345,2]
[424357458,1780782683000,-250.0,0.00037005,2]
[424357468,1780782683000,-172.15,0.0003715,60]
[424357469,1780782683000,-1815.18554688,0.00037164,2]
[424357467,1780782683000,-428.74770506,0.00037111,30]
[424357474,1780782683000,-656.0,0.00037282,13]
[424357471,1780782683000,-177.477,0.000372,18]
[424357479,1780782683000,-823.04438374,0.00037352,120]
[424357482,1780782683000,-1500.0,0.00037391,120]
[424357481,1780782683000,-150.0,0.00037374,30]
[424357483,1780782683000,-250.0,0.00037395,2]
[424357484,1780782683000,-250.0,0.00037395,2]
[424357480,1780782683000,-1251.06,0.00037359,2]
[424357485,1780782683000,-250.0,0.00037395,2]
[424357486,1780782683000,-250.0,0.00037395,2]
[424357422,1780782683000,-151.0,0.00036988,30]
[424357472,1780782683000,-150.0,0.00037241,30]
[424357457,1780782683000,-151.0,0.00037,30]
[424357473,1780782683000,-1562.0,0.0003726,30]
[424357455,1780782683000,-166.22,0.00037,14]
[424357456,1780782683000,-1887.47,0.00037,120]
[424357427,1780782683000,-399.570832,0.00036988,30]
[424357429,1780782683000,-249.366752,0.00036988,30]
[424357426,1780782683000,-151.0,0.00036988,30]
[424357430,1780782683000,-399.570832,0.00036988,30]
[424357433,1780782683000,-151.0,0.00036988,30]
[424357432,1780782683000,-399.570832,0.00036988,30]
[424357428,1780782683000,-529.32302,0.00036988,30]
[424357436,1780782683000,-246.938728,0.00036988,30]
[424357435,1780782683000,-246.938728,0.00036988,30]
[424357434,1780782683000,-246.938728,0.00036988,30]
[424357438,1780782683000,-1012.880522,0.00036988,28]
[424357437,1780782683000,-246.938728,0.00036988,30]
[424357440,1780782683000,-1012.880522,0.00036988,28]
[424357431,1780782683000,-399.570832,0.00036988,30]
[424357441,1780782683000,-1012.880522,0.00036988,28]
[424357442,1780782683000,-151.0,0.00036988,30]
[424357452,1780782683000,-157.0,0.00037,30]
[424357446,1780782683000,-437.689052,0.00036988,30]
[424357445,1780782683000,-437.689052,0.00036988,30]
[424357447,1780782683000,-437.689052,0.00036988,30]
[424357448,1780782683000,-437.689052,0.00036988,30]
[424357454,1780782683000,-169.04497919,0.00037,2]
[424357444,1780782683000,-151.0,0.00036988,30]
[424357451,1780782683000,-500.0,0.00036991,60]
[424357450,1780782683000,-700.0,0.00036991,60]
[424357439,1780782683000,-1012.880522,0.00036988,28]
[424357443,1780782683000,-151.0,0.00036988,30]
[424357449,1780782683000,-500.0,0.00036991,60]
[424357524,1780782684000,-196.105918,0.000377,19]
[424357527,1780782684000,-172.15,0.0003778,86]
[424357525,1780782684000,-22446.72589034,0.0003774,60]
[424357523,1780782684000,-158.255862,0.000377,19]
[424357530,1780782684000,-250.0,0.00037784,2]
[424357528,1780782684000,-250.0,0.00037784,2]
[424357526,1780782684000,-150.0,0.00037775,120]
[424357522,1780782684000,-276.74,0.00037698,49]
[424357529,1780782684000,-250.0,0.00037784,2]
[424357519,1780782684000,-4229.43785493,0.00037694,10]
[424357531,1780782684000,-250.0,0.00037784,2]
[424357532,1780782684000,-1000.0,0.00037793,2]
[424357521,1780782684000,-4592.692,0.00037698,49]
[424357536,1780782684000,-1000.0,0.00037793,2]
[424357539,1780782684000,-1000.0,0.00037793,2]
[424357533,1780782684000,-1000.0,0.00037793,2]
[424357534,1780782684000,-1000.0,0.00037793,2]
[424357544,1780782684000,-1000.0,0.00037793,2]
[424357543,1780782684000,-1000.0,0.00037793,2]
[424357541,1780782684000,-1000.0,0.00037793,2]
[424357537,1780782684000,-1000.0,0.00037793,2]
[424357538,1780782684000,-1000.0,0.00037793,2]
[424357540,1780782684000,-1000.0,0.00037793,2]
[424357542,1780782684000,-1000.0,0.00037793,2]
[424357545,1780782684000,-1000.0,0.00037793,2]
[424357546,1780782684000,-1000.0,0.00037793,2]
[424357557,1780782684000,-1000.0,0.00037793,2]
[424357520,1780782684000,-4229.43785493,0.00037694,10]
[424357535,1780782684000,-1000.0,0.00037793,2]
[424357515,1780782684000,-4229.43785493,0.00037694,10]
[424357490,1780782684000,-150.0,0.00037449,2]
[424357516,1780782684000,-4229.43785493,0.00037694,10]
[424357489,1780782684000,-1000.0,0.00037449,2]
[424357488,1780782684000,-202.492445,0.00037433,18]
[424357491,1780782684000,-407.0,0.00037449,2]
[424357487,1780782684000,-250.0,0.00037395,2]
[424357493,1780782684000,-150.0,0.00037449,2]
[424357505,1780782684000,-269.157051,0.00037476,2]
[424357503,1780782684000,-269.157051,0.00037476,2]
[424357498,1780782684000,-1601.735642,0.00037475,3]
[424357492,1780782684000,-500.0,0.00037449,2]
[424357496,1780782684000,-1601.735642,0.00037475,3]
[424357495,1780782684000,-152.0,0.00037474,7]
[424357504,1780782684000,-269.157051,0.00037476,2]
[424357494,1780782684000,-400.0,0.00037449,2]
[424357511,1780782684000,-150.0,0.00037641,120]
[424357497,1780782684000,-1601.735642,0.00037475,3]
[424357499,1780782684000,-1601.735642,0.00037475,3]
[424357502,1780782684000,-269.157051,0.00037476,2]
[424357501,1780782684000,-151.0,0.00037476,30]
[424357508,1780782684000,-150.0,0.00037508,30]
[424357507,1780782684000,-15000.00565606,0.000375,60]
[424357509,1780782684000,-158.13681208,0.00037598,2]
[424357506,1780782684000,-18381.24638527,0.00037476,2]
[424357514,1780782684000,-150.0,0.00037694,2]
[424357510,1780782684000,-44794.0,0.000376,30]
[424357512,1780782684000,-151.0,0.00037691,30]
[424357517,1780782684000,-4229.43785493,0.00037694,10]
[424357518,1780782684000,-4229.43785493,0.00037694,10]
[424357513,1780782684000,-300.0,0.00037694,2]
[424357500,1780782684000,-3599.12,0.00037475,2]
[424357547,1780782684000,-1000.0,0.00037793,2]
[424357556,1780782684000,-1000.0,0.00037793,2]
[424357549,1780782684000,-1000.0,0.00037793,2]
[424357584,1780782684000,-1000.0,0.00037793,2]
[424357593,1780782684000,-1000.0,0.00037793,2]
[424357590,1780782684000,-1000.0,0.00037793,2]
[424357587,1780782684000,-1000.0,0.00037793,2]
[424357586,1780782684000,-499.0,0.00037793,2]
[424357588,1780782684000,-1000.0,0.00037793,2]
[424357591,1780782684000,-1000.0,0.00037793,2]
[424357592,1780782684000,-1000.0,0.00037793,2]
[424357589,1780782684000,-1000.0,0.00037793,2]